bitfinex/quotes_SOLUSD_20251224
["timestamp","ask_amount","ask_price","bid_price","bid_amount"]
[1766580160013,15.63,122.23,122.2,0.71]
[1766580162200,0.69,122.25,122.21,0.66]
[1766580162385,0.69,122.25,122.22,0.66]
[1766580163288,0.69,122.26,122.22,0.66]
[1766580163889,0.69,122.26,122.23,0.66]
[1766580167115,3.31661646,122.25,122.22,0.66]
[1766580167323,0.69,122.25,122.22,0.66]
[1766580169108,0.69,122.24,122.22,0.66]
[1766580170820,2.62661646,122.25,122.22,0.66]
[1766580171021,0.69,122.25,122.22,0.66]
[1766580197527,0.69,122.25,122.2,86.02302711]
[1766580197732,0.69,122.25,122.21,0.69]
[1766580198524,8.87007803,122.25,122.21,0.69]
[1766580199356,10.55012391,122.25,122.21,0.69]
[1766580200459,0.72,122.24,122.2,15.63]
[1766580200657,0.72,122.24,122.21,0.69]
[1766580204763,0.72,122.23,122.2,0.69]
[1766580205068,0.72,122.22,122.2,0.69]
[1766580205759,0.5865468,122.22,122.2,0.69]
[1766580206065,0.5865468,122.22,122.19,0.69]
[1766580206770,0.5865468,122.22,122.18,8.87435858]
[1766580207253,0.5865468,122.22,122.18,0.69]
[1766580209072,0.5865468,122.22,122.19,0.69]
[1766580213370,0.5865468,122.22,122.19,8.87389406]
[1766580215579,0.72,122.23,122.2,1.68004588]
[1766580215874,0.72,122.24,122.21,0.69]
[1766580218071,20.29798275,122.25,122.21,0.69]
[1766580218072,19.33793687,122.25,122.21,0.69]
[1766580218284,0.72,122.25,122.22,0.7]
[1766580219784,0.72,122.27,122.23,2.38004588]
[1766580220376,0.72,122.27,122.23,0.7]
[1766580220853,0.72,122.27,122.24,0.7]
[1766580223594,0.72,122.29,122.27,0.7]
[1766580223758,0.72,122.3,122.27,0.7]
[1766580224980,0.72,122.3,122.26,1.68004588]
[1766580225169,0.72,122.3,122.26,0.7]
[1766580226686,0.72,122.3,122.27,0.7]
[1766580232071,0.72,122.31,122.27,0.7]
[1766580232275,0.72,122.3,122.27,0.7]
[1766580233469,1.68004588,122.3,122.26,8.17892999]
[1766580233669,0.72,122.29,122.26,8.87892999]
[1766580235703,0.72,122.29,122.26,0.7]
[1766580235865,0.72,122.28,122.25,15.64]
[1766580236071,0.72,122.28,122.25,8.87988347]
[1766580236576,0.72,122.28,122.26,0.7]
[1766580238790,8.17678683,122.3,122.26,0.7]
[1766580238998,0.72,122.29,122.26,0.7]
[1766580243190,0.72,122.3,122.26,0.7]
[1766580245805,0.72,122.29,122.26,0.7]
[1766580246005,0.72,122.31,122.28,0.7]
[1766580264504,0.72,122.31,122.28,8.87786077]
[1766580273833,0.72,122.31,122.28,0.7]
[1766580274127,0.72,122.31,122.26,0.66]
[1766580274128,0.67,122.29,122.26,0.66]
[1766580276019,0.72,122.27,122.24,0.66]
[1766580276423,0.72,122.27,122.25,0.72]
[1766580280050,0.69,122.28,122.25,0.72]
[1766580283641,0.69,122.27,122.24,0.72]
[1766580283820,0.69,122.27,122.24,2.62254472]
[1766580284137,0.69,122.27,122.25,0.72]
[1766580284642,10.79997151,122.29,122.25,0.72]
[1766580284831,0.69,122.28,122.25,0.72]
[1766580287950,0.69,122.28,122.26,0.72]
[1766580289047,0.69,122.28,122.25,8.89987982]
[1766580292251,0.69,122.28,122.26,0.72]
[1766580292555,2.62254472,122.29,122.26,0.72]
[1766580292740,3.31254472,122.29,122.26,0.72]
[1766580293857,11.48996476,122.29,122.26,0.72]
[1766580299164,3.31254472,122.29,122.26,0.72]
[1766580299460,0.69,122.29,122.26,0.72]
[1766580300438,3.31254472,122.29,122.26,0.72]
[1766580300737,0.69,122.29,122.26,0.72]
[1766580300947,3.31254472,122.29,122.26,0.72]
[1766580301462,3.31254472,122.28,122.23,10.80354978]
[1766580301644,3.31254472,122.28,122.24,0.72]
[1766580305169,0.69,122.28,122.24,0.72]
[1766580305469,3.31254472,122.28,122.24,0.72]
[1766580306766,0.69,122.28,122.24,10.8030421]
[1766580306971,0.69,122.28,122.25,0.72]
[1766580307570,36.17710888,122.3,122.25,0.72]
[1766580307769,0.67,122.29,122.25,0.72]
[1766580309542,0.67,122.28,122.25,0.72]
[1766580311970,9.85724698,122.28,122.22,43.17243888]
[1766580312145,2.34923658,122.25,122.21,0.66]
[1766580312351,0.67,122.24,122.22,0.66]
[1766580313269,0.67,122.23,122.2,0.66]
[1766580313454,2.34923658,122.23,122.2,0.66]
[1766580313661,0.67,122.23,122.2,0.66]
[1766580318462,10.53054133,122.23,122.2,0.66]
[1766580318673,0.67,122.22,122.19,0.66]
[1766580319597,0.67,122.21,122.17,10.52424925]
[1766580319906,0.67,122.21,122.18,0.66]
[1766580321065,10.53189147,122.21,122.18,0.66]
[1766580321260,2.34923658,122.21,122.18,0.66]
[1766580321460,10.53188004,122.21,122.18,0.66]
[1766580321659,2.34923658,122.21,122.18,0.66]
[1766580322094,10.53196902,122.21,122.18,0.66]
[1766580328210,2.34923658,122.21,122.18,0.66]
[1766580328401,9.8614869,122.22,122.18,0.66]
[1766580328603,10.5314869,122.22,122.18,0.66]
[1766580331090,9.8614869,122.22,122.18,0.66]
[1766580331291,10.5314869,122.22,122.18,0.66]
[1766580332881,25.47106019,122.23,122.18,1.67923658]
[1766580333098,0.67,122.22,122.19,0.66]
[1766580339003,2.34923658,122.22,122.19,0.66]
[1766580341619,10.53127506,122.22,122.19,0.66]
[1766580359198,1.67923658,122.22,122.19,0.66]
[1766580360020,2.38923658,122.22,122.19,0.66]
[1766580361422,1.67923658,122.21,122.19,0.66]
[1766580361608,2.38923658,122.21,122.17,0.7]
[1766580369030,2.38923658,122.21,122.17,18.62291702]
[1766580369211,2.38923658,122.21,122.18,0.67]
[1766580369932,3.33714775,122.21,122.18,0.67]
[1766580376835,0.71,122.21,122.18,0.67]
[1766580377133,3.33714775,122.21,122.18,0.67]
[1766580383441,0.71,122.21,122.18,0.67]
[1766580387849,0.71,122.22,122.19,0.67]
[1766580389155,3.33714775,122.24,122.19,2.62714775]
[1766580389448,0.71,122.24,122.2,0.67]
[1766580389626,3.33714775,122.23,122.2,0.67]
[1766580389828,0.71,122.22,122.2,0.67]
[1766580390147,3.33714775,122.23,122.2,0.67]
[1766580390642,2.62714775,122.23,122.2,0.67]
[1766580390949,23.83081759,122.24,122.2,0.67]
[1766580391251,3.33714775,122.23,122.2,0.67]
[1766580391438,0.71,122.23,122.2,0.67]
[1766580391936,26.45796534,122.24,122.2,0.67]
[1766580392647,11.51796534,122.24,122.2,0.67]
[1766580393452,8.89081759,122.24,122.2,0.67]
[1766580393656,11.51796534,122.24,122.2,0.67]
[1766580394751,3.33714775,122.24,122.2,0.67]
[1766580394941,3.33714775,122.24,122.21,0.67]
[1766580398444,2.62714775,122.25,122.22,0.69]
[1766580398642,3.31714775,122.27,122.23,0.69]
[1766580398949,11.4957697,122.27,122.23,0.69]
[1766580401956,2.62714775,122.26,122.23,0.69]
[1766580402258,3.31714775,122.25,122.23,0.69]
[1766580402455,2.62714775,122.25,122.23,0.69]
[1766580404459,18.25714775,122.27,122.23,0.69]
[1766580405041,18.25714775,122.27,122.24,0.69]
[1766580407266,15.63,122.27,122.24,0.69]
[1766580407959,18.25714775,122.27,122.24,0.69]
[1766580408650,15.63,122.27,122.24,0.69]
[1766580409165,0.69,122.27,122.24,0.69]
[1766580409366,15.63,122.27,122.24,0.69]
[1766580410465,105.22714775,122.28,122.25,0.69]
[1766580410646,0.69,122.29,122.26,0.69]
[1766580412166,11.49337571,122.31,122.26,2.62714775]
[1766580412371,26.43337571,122.31,122.27,0.69]
[1766580412957,0.69,122.27,122.23,0.69]
[1766580413152,3.31714775,122.27,122.23,0.69]
[1766580413349,3.31714775,122.27,122.24,0.69]
[1766580413671,0.69,122.27,122.24,0.69]
[1766580414364,3.31714775,122.27,122.24,0.69]
[1766580414679,8.86695191,122.3,122.24,8.18029542]
[1766580414857,14.94,122.29,122.25,0.69]
[1766580415171,15.63,122.29,122.25,0.69]
[1766580417670,10.80409966,122.3,122.25,8.86992371]
[1766580417974,8.86695191,122.3,122.26,0.69]
[1766580421573,11.49409966,122.3,122.26,0.69]
[1766580425185,2.62714775,122.28,122.25,0.69]
[1766580425357,3.31714775,122.27,122.25,0.69]
[1766580427961,0.69,122.27,122.25,0.69]
[1766580429267,3.31714775,122.27,122.23,0.65]
[1766580430575,0.69,122.27,122.23,0.65]
[1766580432583,0.69,122.27,122.24,0.65]
[1766580432888,17.31970279,122.28,122.24,0.65]
[1766580433092,16.61970279,122.28,122.24,0.65]
[1766580433267,0.7,122.27,122.24,0.65]
[1766580434486,16.61970279,122.28,122.24,0.65]
[1766580434666,15.64,122.28,122.25,0.65]
[1766580437589,0.7,122.28,122.25,0.65]
[1766580438286,0.7,122.29,122.26,0.65]
[1766580439467,2.37970279,122.29,122.26,0.65]
[1766580439668,1.67970279,122.29,122.26,0.65]
[1766580439968,0.7,122.28,122.26,0.65]
[1766580441886,8.87807108,122.28,122.24,0.65]
[1766580442087,10.55777387,122.28,122.24,0.65]
[1766580442397,8.87807108,122.28,122.24,0.65]
[1766580442773,2.37970279,122.27,122.24,0.65]
[1766580443576,0.7,122.27,122.24,0.65]
[1766580444093,2.37970279,122.27,122.24,0.65]
[1766580444293,0.7,122.27,122.24,0.65]
[1766580448001,8.84807108,122.28,122.24,0.65]
[1766580449902,8.17807108,122.28,122.24,0.65]
[1766580450107,0.67,122.27,122.24,0.65]
[1766580460314,0.67,122.27,122.23,1.67970279]
[1766580462282,0.67,122.27,122.24,8.84041193]
[1766580462486,0.67,122.27,122.25,0.66]
[1766580465106,0.67,122.27,122.24,0.68]
[1766580465310,2.34970279,122.27,122.24,0.68]
[1766580465506,0.69,122.26,122.24,0.68]
[1766580467720,0.69,122.25,122.22,0.68]
[1766580469786,0.69,122.25,122.22,8.18191545]
[1766580469991,0.69,122.25,122.23,0.68]
[1766580472618,0.69,122.25,122.22,0.68]
[1766580486021,0.69,122.25,122.2,11.11767296]
[1766580486022,0.69,122.23,122.2,11.11767296]
[1766580486230,0.69,122.23,122.21,0.68]
[1766580489304,1.67970279,122.25,122.21,8.86262356]
[1766580489508,0.71,122.24,122.21,8.86262356]
[1766580489720,0.71,122.24,122.21,0.68]
[1766580494433,3.33571763,122.24,122.21,0.68]
[1766580499931,0.71,122.23,122.2,19.34068172]
[1766580501341,0.71,122.23,122.2,0.72]
[1766580501633,3.33571763,122.22,122.19,0.72]
[1766580502319,0.71,122.22,122.19,0.72]
[1766580502948,3.33571763,122.22,122.19,0.72]
[1766580503643,10.80782166,122.22,122.19,0.72]
[1766580503843,0.71,122.21,122.18,0.72]
[1766580504048,0.71,122.21,122.18,8.90461493]
[1766580504950,0.71,122.21,122.19,0.72]
[1766580505736,0.71,122.23,122.2,0.72]
[1766580505938,0.71,122.24,122.21,0.72]
[1766580513932,10.80575706,122.25,122.21,0.72]
[1766580514132,11.51575706,122.25,122.21,0.72]
[1766580515550,3.33571763,122.25,122.21,8.90262639]
[1766580515751,3.33571763,122.25,122.22,0.72]
[1766580515752,0.71,122.25,122.22,0.72]
[1766580523160,8.88997195,122.25,122.22,0.72]
[1766580523357,0.66,122.24,122.21,0.7]
[1766580524968,3.28571763,122.24,122.21,0.7]
[1766580525173,0.66,122.23,122.2,0.7]
[1766580526044,8.84130695,122.23,122.2,0.7]
[1766580527443,0.66,122.23,122.2,0.7]
[1766580537772,0.66,122.23,122.2,8.88323084]
[1766580539877,0.66,122.23,122.21,0.7]
[1766580540176,0.66,122.24,122.22,0.7]
[1766580541563,2.62571763,122.26,122.22,0.7]
[1766580541759,0.66,122.25,122.22,0.7]
[1766580542970,0.66,122.25,122.21,8.88211752]
[1766580543180,0.66,122.24,122.21,0.7]
[1766580544775,3.28571763,122.24,122.2,8.18290515]
[1766580544957,0.66,122.23,122.2,8.88290515]
[1766580545157,0.66,122.23,122.2,0.7]
[1766580551585,0.66,122.23,122.19,11.12767296]
[1766580552386,0.72,122.22,122.19,11.12767296]
[1766580553366,0.72,122.22,122.19,10.43767296]
[1766580553675,0.72,122.22,122.2,0.69]
[1766580555992,0.72,122.24,122.21,0.69]
[1766580556593,8.90063562,122.24,122.21,0.69]
[1766580557707,10.58141076,122.24,122.21,0.69]
[1766580559098,2.40077514,122.24,122.21,0.69]
[1766580559392,0.72,122.24,122.21,0.69]
[1766580560996,8.90064616,122.24,122.21,0.69]
[1766580562494,16.62077514,122.25,122.21,8.87258115]
[1766580562680,0.72,122.25,122.22,0.69]
[1766580566309,2.40077514,122.25,122.22,0.69]
[1766580568897,0.72,122.25,122.22,0.69]
[1766580569794,8.8999801,122.25,122.22,0.69]
[1766580569997,10.58075524,122.25,122.22,0.69]
[1766580571988,0.72,122.24,122.21,0.69]
[1766580572501,0.72,122.22,122.2,0.69]
[1766580573079,2.40077514,122.23,122.2,0.69]
[1766580573689,0.72,122.23,122.2,0.69]
[1766580575302,0.72,122.22,122.2,0.69]
[1766580576799,8.18156615,122.23,122.2,0.69]
[1766580577103,8.87156615,122.23,122.2,0.69]
[1766580577396,0.67,122.22,122.2,0.69]
[1766580578696,8.85156615,122.23,122.2,0.69]
[1766580579707,0.67,122.23,122.2,0.69]
[1766580585982,0.67,122.23,122.2,8.18317155]
[1766580586189,0.67,122.23,122.21,0.72]
[1766580595896,15.61,122.24,122.21,0.72]
[1766580596212,0.67,122.24,122.21,0.72]
[1766580597813,2.35077514,122.24,122.21,0.72]
[1766580606034,0.67,122.25,122.21,0.72]
[1766580606328,2.35077514,122.25,122.21,0.72]
[1766580607226,2.35077514,122.25,122.21,8.9025848]
[1766580607434,2.35077514,122.25,122.22,0.68]
[1766580613915,3.29545329,122.25,122.22,0.68]
[1766580615237,11.47547216,122.25,122.22,0.68]
[1766580615744,3.29545329,122.24,122.22,0.68]
[1766580616124,3.29545329,122.24,122.21,0.68]
[1766580618551,2.62545329,122.24,122.21,0.68]
[1766580624348,3.29545329,122.24,122.21,0.68]
[1766580624948,0.67,122.24,122.21,0.68]
[1766580628351,3.29545329,122.24,122.21,0.68]
[1766580639256,11.47616796,122.24,122.21,0.68]
[1766580639558,8.85071467,122.24,122.21,0.68]
[1766580639761,11.47616796,122.24,122.21,0.68]
[1766580642538,0.67,122.23,122.2,0.68]
[1766580644445,3.29545329,122.23,122.2,0.68]
[1766580644645,0.67,122.23,122.2,0.68]
[1766580647861,11.47616796,122.24,122.21,11.11767296]
[1766580648649,0.67,122.24,122.21,10.43767296]
[1766580648856,0.67,122.24,122.22,0.68]
[1766580649557,0.67,122.26,122.23,11.11767296]
[1766580650260,2.62545329,122.26,122.23,11.11767296]
[1766580650462,8.17895478,122.27,122.24,0.68]
[1766580650637,10.80440807,122.27,122.24,0.68]
[1766580651356,35.38617626,122.28,122.24,0.68]
[1766580651357,2.62545329,122.28,122.24,0.68]
[1766580651564,2.62545329,122.29,122.25,0.68]
[1766580652456,3.29545329,122.29,122.25,0.68]
[1766580652851,3.29545329,122.26,122.24,8.17754434]
[1766580653056,3.29545329,122.26,122.23,8.86113585]
[1766580653245,2.62545329,122.27,122.25,10.43767296]
[1766580653436,3.29545329,122.27,122.25,10.43767296]
[1766580654046,0.67,122.29,122.25,11.11767296]
[1766580654257,0.67,122.28,122.25,11.11767296]
[1766580654559,3.29545329,122.28,122.25,8.85990937]
[1766580654766,3.29545329,122.28,122.25,0.68]
[1766580654943,0.67,122.29,122.23,38.01807326]
[1766580655143,2.62545329,122.28,122.26,0.68]
[1766580655361,3.29545329,122.28,122.26,0.68]
[1766580655766,2.62545329,122.29,122.26,0.68]
[1766580656757,2.62545329,122.3,122.27,11.11767296]
[1766580656953,0.67,122.31,122.27,11.11767296]
[1766580656954,3.29545329,122.31,122.27,11.11767296]
[1766580657160,2.62545329,122.3,122.27,11.11767296]
[1766580657355,3.29545329,122.3,122.27,11.11767296]
[1766580657755,3.29545329,122.3,122.27,19.29610902]
[1766580658755,0.67,122.3,122.27,18.61610902]
[1766580659066,3.29545329,122.3,122.28,0.68]
[1766580660567,2.62545329,122.3,122.28,0.68]
[1766580660773,2.62545329,122.31,122.28,8.85790291]
[1766580660952,3.29545329,122.31,122.28,8.85790291]
[1766580661164,3.29545329,122.31,122.28,0.68]
[1766580661348,2.62545329,122.3,122.27,18.61597764]
[1766580661544,0.67,122.27,122.23,15.14]
[1766580661748,3.29545329,122.26,122.23,15.82]
[1766580661985,3.29545329,122.26,122.23,8.86105899]
[1766580662659,3.29545329,122.26,122.24,0.68]
[1766580666573,0.67,122.26,122.24,0.68]
[1766580667679,0.67,122.26,122.22,10.43767296]
[1766580667680,0.66,122.25,122.22,8.85196694]
[1766580668178,0.66,122.25,122.23,0.67]
[1766580669980,0.66,122.25,122.23,8.8510842]
[1766580675184,2.62545329,122.27,122.23,8.8510842]
[1766580675366,0.66,122.26,122.23,8.8510842]
[1766580675967,0.66,122.26,122.24,0.67]
[1766580676169,0.66,122.26,122.23,8.1810842]
[1766580676487,0.66,122.26,122.23,8.8510842]
[1766580689802,1.67984768,122.26,122.23,0.67]
[1766580690002,0.66,122.25,122.23,0.67]
[1766580694784,1.67984768,122.26,122.23,0.67]
[1766580695092,2.33984768,122.26,122.23,0.67]
[1766580700312,0.66,122.26,122.23,0.67]
[1766580700483,2.33984768,122.26,122.23,0.67]
[1766580705418,1.67984768,122.26,122.23,0.67]
[1766580705596,2.35984768,122.26,122.23,0.67]
[1766580716922,0.68,122.25,122.21,34.22000292]
[1766580717131,0.68,122.25,122.22,0.66]
[1766580717503,2.35984768,122.25,122.22,0.66]
[1766580718220,0.68,122.25,122.22,0.66]
[1766580719728,0.68,122.25,122.22,8.18190463]
[1766580719905,0.68,122.25,122.23,0.66]
[1766580724143,0.68,122.27,122.23,8.18116622]
[1766580724321,0.68,122.29,122.25,0.66]
[1766580724638,0.68,122.28,122.25,0.66]
[1766580725224,2.35984768,122.28,122.25,0.66]
[1766580725945,0.68,122.28,122.25,0.66]
[1766580726755,0.68,122.28,122.25,8.83993476]
[1766580728845,2.35984768,122.28,122.25,8.83993476]
[1766580732046,0.68,122.28,122.25,8.83993476]
[1766580733451,2.35984768,122.28,122.25,0.66]
[1766580733746,2.35984768,122.28,122.25,8.83978604]
[1766580735035,0.68,122.28,122.26,0.7]
[1766580735539,0.68,122.31,122.27,0.7]
[1766580735746,2.35984768,122.31,122.27,0.7]
[1766580736056,3.30296995,122.31,122.27,0.7]
[1766580737254,3.30296995,122.31,122.27,8.87861557]
[1766580737427,3.30296995,122.31,122.28,0.7]
[1766580737627,0.68,122.3,122.28,0.7]
[1766580737828,3.30296995,122.29,122.26,0.7]
[1766580738048,0.68,122.29,122.26,0.7]
[1766580738549,2.62296995,122.3,122.26,8.8787421]
[1766580738748,0.68,122.3,122.27,8.87858009]
[1766580739051,0.68,122.3,122.28,0.7]
[1766580740930,3.30296995,122.3,122.28,0.7]
[1766580741132,2.62296995,122.3,122.26,8.17905635]
[1766580741330,0.68,122.29,122.26,8.87905635]
[1766580741557,0.68,122.28,122.26,0.7]
[1766580741731,2.62296995,122.29,122.26,0.7]
[1766580741932,0.68,122.28,122.26,0.7]
[1766580746962,0.68,122.28,122.25,0.7]
[1766580753363,8.85732723,122.29,122.25,0.7]
[1766580754564,0.68,122.28,122.25,8.87993164]
[1766580756866,0.68,122.28,122.25,8.17993164]
[1766580757065,0.68,122.28,122.26,0.7]
[1766580765768,0.68,122.28,122.25,8.17993164]
[1766580765964,0.68,122.28,122.25,8.86993164]
[1766580772776,0.68,122.28,122.26,0.69]
[1766580790898,0.68,122.28,122.24,8.18062827]
[1766580791201,0.68,122.28,122.25,0.7]
[1766580798007,0.68,122.28,122.25,8.87984048]
[1766580798506,0.68,122.28,122.26,0.7]
[1766580802107,0.68,122.28,122.24,8.18062827]
[1766580802293,0.68,122.28,122.25,0.7]
[1766580803307,0.66,122.29,122.25,0.7]
[1766580804402,0.66,122.29,122.25,8.87969359]
[1766580805204,0.66,122.29,122.25,8.17969359]
[1766580805398,0.66,122.29,122.26,0.7]
[1766580809084,0.66,122.29,122.26,8.87905466]
[1766580809411,0.66,122.29,122.27,0.7]
[1766580821198,8.17616329,122.31,122.27,0.7]
[1766580821199,8.86616329,122.31,122.27,0.7]
[1766580821398,10.54542962,122.31,122.27,0.7]
[1766580822223,9.85542962,122.31,122.27,0.7]
[1766580822520,0.69,122.3,122.27,0.7]
[1766580825322,0.69,122.3,122.27,8.87859118]
[1766580825500,0.69,122.3,122.28,0.66]
[1766580830427,8.17596275,122.31,122.28,0.66]
[1766580830803,8.86596275,122.31,122.28,0.66]
[1766580834225,8.86529857,122.32,122.28,8.1778725]
[1766580834404,25.4845649,122.32,122.29,0.66]
[1766580835225,24.7945649,122.32,122.29,0.66]
[1766580835528,0.69,122.31,122.29,0.66]
[1766580840020,1.67926633,122.32,122.28,8.83761407]
[1766580840217,10.74396502,122.33,122.29,0.66]
[1766580840619,1.67926633,122.32,122.29,0.66]
[1766580841518,2.36926633,122.32,122.29,0.66]
[1766580841722,1.67926633,122.31,122.29,0.66]
[1766580842111,25.48478528,122.32,122.29,0.66]
[1766580846945,24.74891371,122.33,122.29,0.66]
[1766580847235,0.2,122.33,122.31,0.66]
[1766580847928,0.2,122.34,122.31,0.66]
[1766580847929,0.2,122.34,122.32,0.66]
[1766580851335,0.88,122.34,122.32,0.66]
[1766580858342,0.2,122.35,122.32,8.17485267]
[1766580858547,0.2,122.35,122.33,0.66]
[1766580858721,0.88,122.35,122.33,0.66]
[1766580860457,0.2,122.35,122.33,0.66]
[1766580864435,0.88,122.35,122.33,0.66]
[1766580866743,0.1,122.38,122.35,0.66]
[1766580866946,0.1,122.38,122.37,0.66]
[1766580867648,0.78,122.44,122.39,0.66]
[1766580867834,0.68,122.43,122.4,0.66]
[1766580868248,0.68,122.43,122.4,3.93104714]
[1766580869840,0.68,122.43,122.4,0.66]
[1766580872236,0.68,122.42,122.4,0.66]
[1766580873639,0.68,122.42,122.39,24.52683644]
[1766580873640,0.68,122.42,122.39,25.18683644]
[1766580873844,0.68,122.42,122.39,0.66]
[1766580874454,0.34830076,122.42,122.39,0.66]
[1766580879733,0.34830076,122.42,122.39,8.83050532]
[1766580879938,0.66,122.43,122.4,0.66]
[1766580882164,3.28094249,122.43,122.4,0.66]
[1766580882545,11.54851205,122.44,122.4,0.66]
[1766580885164,3.38094249,122.44,122.4,8.82988602]
[1766580885350,3.38094249,122.44,122.41,0.68]
[1766580885745,3.40094249,122.44,122.41,0.68]
[1766580887968,0.78,122.44,122.41,0.68]
[1766580888265,3.40094249,122.44,122.41,0.68]
[1766580888864,0.68,122.43,122.41,0.68]
[1766580891564,3.30094249,122.43,122.41,0.68]
[1766580892570,0.68,122.43,122.41,0.68]
[1766580892951,3.40094249,122.44,122.41,0.68]
[1766580894678,0.78,122.44,122.41,0.68]
[1766580894850,3.40094249,122.44,122.41,0.68]
[1766580895476,0.78,122.44,122.41,0.68]
[1766580896679,3.40094249,122.44,122.41,0.68]
[1766580896866,0.78,122.44,122.41,0.68]
[1766580897065,3.40094249,122.44,122.41,0.68]
[1766580897489,0.78,122.44,122.41,0.68]
[1766580897656,0.1,122.44,122.41,0.68]
[1766580897856,0.78,122.44,122.41,0.68]
[1766580898679,0.1,122.44,122.41,0.68]
[1766580899180,0.1,122.44,122.42,0.68]
[1766580899773,0.78,122.48,122.44,0.68]
[1766580899970,3.40094249,122.48,122.44,0.68]
[1766580900277,0.68,122.47,122.44,0.68]
[1766580900662,0.1,122.48,122.47,0.68]
[1766580901170,0.1,122.48,122.46,8.16584901]
[1766580901364,0.1,122.48,122.46,8.84584901]
[1766580902281,2.72094249,122.48,122.45,0.68]
[1766580902504,3.30094249,122.46,122.44,0.68]
[1766580902682,0.68,122.46,122.43,8.8473548]
[1766580903067,0.1,122.48,122.44,0.68]
[1766580903672,0.1,122.48,122.45,0.68]
[1766580904792,0.1,122.48,122.45,8.84612622]
[1766580905292,0.78,122.48,122.45,8.84612622]
[1766580906399,0.1,122.48,122.45,0.68]
[1766580906695,3.40094249,122.48,122.45,0.68]
[1766580907400,0.78,122.48,122.45,0.68]
[1766580908299,0.1,122.48,122.45,0.68]
[1766580908478,14.92,122.5,122.47,0.65]
[1766580908872,15.62,122.5,122.47,0.65]
[1766580909074,18.24094249,122.5,122.47,0.65]
[1766580909692,0.7,122.49,122.47,0.65]
[1766580910687,3.32094249,122.5,122.47,8.81520105]
[1766580911071,3.32094249,122.5,122.47,0.65]
[1766580912804,3.32094249,122.5,122.47,8.81517693]
[1766580914404,3.32094249,122.5,122.47,0.65]
[1766580914982,0.7,122.49,122.47,0.65]
[1766580916183,3.32094249,122.5,122.47,0.65]
[1766580917301,0.7,122.49,122.47,0.65]
[1766580917796,0.7,122.49,122.47,8.81513117]
[1766580918002,3.32094249,122.5,122.47,8.81513117]
[1766580918198,0.7,122.5,122.47,8.81513117]
[1766580918404,23.08226066,122.52,122.48,0.65]
[1766580918405,3.32094249,122.51,122.48,0.65]
[1766580918589,2.62094249,122.51,122.47,8.16513117]
[1766580918790,0.7,122.5,122.47,8.81513117]
[1766580921094,15.62,122.52,122.47,0.65]
[1766580921294,17.29344267,122.52,122.48,0.65]
[1766580921600,15.62,122.52,122.48,0.65]
[1766580922706,4.78316658,122.54,122.5,0.65]
[1766580922911,0.7,122.53,122.5,0.65]